fUSD/lending_fUSD_20250426
["ID","MTS","AMOUNT","RATE_DAILY","PERIOD"]
[359013384,1745637047060,-500.0,0.00027397,2]
[359013385,1745637047070,-500.0,0.00027397,2]
[359013386,1745637047080,-500.0,0.00027397,2]
[359013387,1745637047090,-262.90037065,0.00027397,2]
[359013388,1745637047099,-500.0,0.00027397,2]
[359013389,1745637047109,-500.0,0.00027397,2]
[359013390,1745637047119,-507.32151966,0.00027397,2]
[359013391,1745637047129,-500.0,0.00027397,2]
[359013392,1745637047139,-500.0,0.00027397,2]
[359013393,1745637047149,-500.0,0.00027397,2]
[359013394,1745637047162,-500.0,0.00027397,2]
[359013395,1745637047171,-844.06,0.00027397,2]
[359013396,1745637047181,-618.3,0.00027397,2]
[359013397,1745637047190,-500.0,0.00027397,2]
[359013398,1745637047199,-500.0,0.00027397,2]
[359013399,1745637047209,-500.0,0.00027397,2]
[359013400,1745637047218,-500.0,0.00027397,2]
[359013401,1745637047228,-500.0,0.00027397,2]
[359013402,1745637047238,-503.80382462,0.00027397,2]
[359013403,1745637047248,-500.0,0.00027397,2]
[359013404,1745637047258,-500.0,0.00027397,2]
[359013405,1745637047267,-768.0,0.00027397,2]
[359013406,1745637047278,-505.0925015,0.00027397,2]
[359013407,1745637047288,-500.0,0.00027397,2]
[359013408,1745637047298,-500.0,0.00027397,2]
[359013409,1745637047307,-500.0,0.00027397,2]
[359013410,1745637047316,-500.0,0.00027397,2]
[359013411,1745637047326,-35.59922005,0.00027397,2]
[359013412,1745637048259,-285.081,0.0001974,2]
[359013413,1745637048389,-1872.8303145,0.0001974,2]
[359013414,1745637048409,-421.7301546,0.0001974,2]
[359013415,1745637229792,163.21,0.00027425,30]
[359013421,1745638037402,50000.0,0.00019281,2]
[359013441,1745638232313,-300.0,0.00019739,2]
[359013442,1745638232323,-268.61821818,0.00019739,2]
[359013492,1745638238112,-931.38178182,0.00019739,2]
[359013493,1745638238123,-300.0,0.00019739,2]
[359013494,1745638238132,-200.0,0.0001974,2]
[359013495,1745638238143,-250.0,0.0001974,2]
[359013496,1745638238166,-5120.5711309,0.0001974,2]
[359013497,1745638238179,-6190.72757634,0.0001974,2]
[359013498,1745638238196,-1961.27242366,0.0001974,2]
[359013499,1745638238207,-491.01437173,0.00019829,2]
[359013500,1745638238218,-230.51901884,0.00019829,2]
[359013501,1745638238229,-48490.08597672,0.0001983,2]
[359013502,1745638238241,-730.28498937,0.0001987,2]
[359013503,1745638238254,-12579.4057,0.00019886,2]
[359013504,1745638238265,-3248.06686756,0.00019889,2]
[359013505,1745638238275,-225.0,0.000199,2]
[359013506,1745638238284,-58853.48698888,0.000199,2]
[359013507,1745638238294,-420.43427725,0.000199,2]
[359013508,1745638238305,-4744.94619545,0.000199,3]
[359013509,1745638238314,-501.2656926,0.000199,2]
[359013510,1745638238325,-2500.0,0.000199,2]
[359013511,1745638238335,-335.83307756,0.000199,2]
[359013512,1745638238345,-773.55510046,0.000199,2]
[359013513,1745638238355,-525.48834842,0.000199,2]
[359013514,1745638238366,-525.48834842,0.000199,2]
[359013515,1745638238375,-515.11545751,0.00019973,2]
[359013516,1745638238385,-607.62589314,0.00019973,2]
[359013517,1745638238395,-500.0,0.00019973,2]
[359013518,1745638238405,-513.85638489,0.00019973,2]
[359013519,1745638238416,-500.0,0.00019973,2]
[359013520,1745638238426,-500.0,0.00019973,2]
[359013521,1745638238436,-300.0,0.00019999,2]
[359013522,1745638238447,-166.0163325,0.00019999,2]
[359013523,1745638238458,-256.16128359,0.00019999,2]
[359013524,1745638238468,-500.0,0.00019999,2]
[359013525,1745638238478,-450.0,0.00019999,2]
[359013526,1745638238488,-500.0,0.00019999,2]
[359013528,1745638238498,-500.0,0.00019999,2]
[359013530,1745638238509,-500.0,0.00019999,2]
[359013532,1745638238519,-500.0,0.00019999,2]
[359013534,1745638238530,-500.0,0.00019999,2]
[359013535,1745638238540,-500.0,0.00019999,2]
[359013536,1745638238550,-500.0,0.00019999,2]
[359013537,1745638238561,-500.0,0.00019999,2]
[359013538,1745638238572,-500.0,0.00019999,2]
[359013539,1745638238582,-500.0,0.00019999,2]
[359013540,1745638238592,-500.0,0.00019999,2]
[359013542,1745638238609,-500.0,0.00019999,2]
[359013543,1745638238620,-500.0,0.00019999,2]
[359013545,1745638238631,-500.0,0.00019999,2]
[359013547,1745638238643,-500.0,0.00019999,2]
[359013548,1745638238653,-500.0,0.00019999,2]
[359013549,1745638238663,-500.0,0.00019999,2]
[359013550,1745638238674,-500.0,0.00019999,2]
[359013551,1745638238685,-500.0,0.00019999,2]
[359013552,1745638238696,-598.38830219,0.00019999,2]
[359013553,1745638238706,-500.0,0.00019999,2]
[359013554,1745638238716,-500.0,0.00019999,2]
[359013555,1745638238727,-500.0,0.00019999,2]
[359013556,1745638238738,-272.61,0.0002,2]
[359013557,1745638238748,-3049385.67665459,0.0002,2]
[359013558,1745638238761,-2494318.525,0.0002,2]
[359013559,1745638242507,-0.00903098,0.0002,2]
[359013566,1745638243271,-336.75297019,0.0002,2]
[359013567,1745638243329,-1078.61063024,0.0002,2]
[359013571,1745638246066,-2087.926,0.0002,2]
[359013572,1745638246285,-1418.08976366,0.0002,2]
[359013576,1745638278660,-319.65129504,0.000199,2]
[359013577,1745638289500,-221.22342554,0.000199,2]
[359013578,1745638293062,-300.0,0.000199,2]
[359013579,1745638296741,-436.8479,0.000199,2]
[359013580,1745638301074,-288.8479,0.000199,2]
[359013581,1745638304535,-210.84,0.000199,2]
[359013582,1745638320952,163.21,0.00027425,30]
[359013584,1745638814270,250.0,0.00017,2]
[359013585,1745638815444,300.0,0.00019,2]
[359013587,1745639050037,540.874721,0.00019189,2]
[359013589,1745639324913,163.21,0.00027425,30]
[359013599,1745639343955,687.5366707,0.00019209,2]
[359013601,1745639432482,-350.0,0.00019567,2]
[359013602,1745639432494,-489.38511936,0.00019567,2]
[359013603,1745639432515,-211.93488064,0.00019567,2]
[359013604,1745639432525,-161.12769944,0.000197,2]
[359013605,1745639432539,-300.0,0.000197,2]
[359013606,1745639432551,-226.40897126,0.000197,2]
[359013607,1745639432561,-113.04079347,0.00019785,2]
[359013845,1745639438315,-886.95920653,0.00019785,2]
[359013846,1745639438325,-687.5366707,0.0001981,2]
[359013847,1745639438334,-300.0,0.00019898,2]
[359013848,1745639438345,-1200.0,0.00019898,2]
[359013849,1745639438354,-3303.77612859,0.00019899,2]
[359013850,1745639438363,-300.0,0.00019899,2]
[359013851,1745639438373,-17316.5065,0.000199,2]
[359013852,1745639438383,-225.0,0.000199,2]
[359013853,1745639438393,-1000.0,0.000199,2]
[359013854,1745639438403,-34256.517,0.000199,2]
[359013855,1745639438415,-2500.0,0.000199,2]
[359013856,1745639438425,-501.2656926,0.000199,2]
[359013857,1745639438434,-420.43427725,0.000199,2]
[359013858,1745639438444,-335.83307756,0.000199,2]
[359013859,1745639438455,-1000.0,0.000199,2]
[359013860,1745639438464,-15650.42830317,0.000199,2]
[359013861,1745639438474,-500.0,0.00019973,2]
[359013862,1745639438486,-607.62589314,0.00019973,2]
[359013863,1745639438496,-500.0,0.00019973,2]
[359013864,1745639438506,-500.0,0.00019973,2]
[359013865,1745639438516,-515.11545751,0.00019973,2]
[359013866,1745639438526,-500.0,0.00019973,2]
[359013867,1745639438535,-2825.4,0.00019986,2]
[359013868,1745639438545,-5639.8208685,0.00019986,2]
[359013869,1745639438555,-151.0,0.00019988,2]
[359013870,1745639438564,-207.4,0.00019988,2]
[359013871,1745639438573,-150.99,0.00019988,2]
[359013872,1745639438583,-154.82551,0.0001999,2]
[359013873,1745639438592,-500.0,0.00019999,2]
[359013874,1745639438602,-300.0,0.00019999,2]
[359013875,1745639438612,-383.00964834,0.00019999,2]
[359013876,1745639438622,-752.90329813,0.00019999,2]
[359013877,1745639438631,-752.90329813,0.00019999,2]
[359013879,1745639438641,-752.90329813,0.00019999,2]
[359013881,1745639438650,-752.90329813,0.00019999,2]
[359013883,1745639438660,-752.90329813,0.00019999,2]
[359013885,1745639438669,-256.16128359,0.00019999,2]
[359013887,1745639438679,-166.0163325,0.00019999,2]
[359013889,1745639438689,-3051931.52694754,0.0002,2]
[359013891,1745639438700,-2494318.525,0.0002,2]
[359013896,1745639438740,-932.3423989,0.0002,2]
[359013900,1745639438774,-3229.23732841,0.0002,2]
[359013989,1745639440532,-743.32136813,0.0002,2]
[359013990,1745639440673,-586.82160456,0.0002,2]
[359013991,1745639440697,-330.30769852,0.0002,2]
[359013992,1745639440799,-1603.24613442,0.0002,2]
[359013999,1745639443329,-7800.0,0.0002,2]
[359014000,1745639443341,-1123.85774454,0.0002,2]
[359014001,1745639443435,-658.37860201,0.0002,2]
[359014010,1745639443726,-1190.91949928,0.0002,2]
[359014015,1745639443776,-259.29597757,0.0002,2]
[359014017,1745639443789,-1384.28247185,0.0002,2]
[359014040,1745639444558,-164.09372149,0.000199,2]
[359014048,1745639446376,-609.46137897,0.000199,2]
[359014049,1745639446388,-6740.42173172,0.0002,2]
[359014212,1745639657827,800.0,0.00034384,60]
[359014213,1745639659453,204.8446718,0.0003548,60]
[359014215,1745639763667,500.0,0.00034384,60]
[359014216,1745639765277,500.0,0.0003548,60]
[359014217,1745639766748,500.0,0.00036576,60]
[359014218,1745639768614,239.34913136,0.00037672,60]
[359014219,1745639881280,700.0,0.00034384,60]
[359014222,1745640015597,250.0,0.0001914,2]
[359014223,1745640050080,1031.22,0.00017222,2]
[359014224,1745640120702,196.0,0.00037808,60]
[359014225,1745640160588,1582.146,0.00037808,60]
[359014227,1745640308692,-300.0,0.00019316,2]
[359014228,1745640308723,-300.0,0.00019316,2]
[359014229,1745640308750,-900.0,0.00019316,2]
[359014230,1745640350002,1000.0,0.0001907,2]
[359014231,1745640458558,163.21,0.00027425,30]
[359014233,1745640630712,250.0,0.00017,2]
[359014250,1745640631909,-1200.0,0.00019316,2]
[359014252,1745640631920,-250.0,0.00019316,2]
[359014254,1745640631929,-2.0,0.00019317,2]
[359014257,1745640631946,-1330.98255376,0.00019317,2]
[359014262,1745640631985,300.0,0.00019,2]
[359014382,1745640637679,-22567.01744624,0.00019317,2]
[359014383,1745640637691,-1031.22,0.00019486,2]
[359014384,1745640637701,-222766.09187625,0.00019684,2]
[359014385,1745640637712,-222766.09187625,0.00019783,2]
[359014386,1745640637722,-2500.0,0.000198,2]
[359014387,1745640637732,-6412.38100655,0.00019876,2]
[359014388,1745640637741,-6412.38100653,0.00019879,2]
[359014389,1745640637752,-6412.38100653,0.00019881,2]
[359014390,1745640637762,-6412.38100653,0.00019884,2]
[359014391,1745640637771,-525.48834842,0.00019886,2]
[359014392,1745640637780,-1000.0,0.00019886,2]
[359014393,1745640637791,-6412.38100653,0.00019887,2]
[359014394,1745640637801,-6412.38100653,0.00019889,2]
[359014395,1745640637812,-647.89,0.0001989,2]
[359014396,1745640637821,-2825.4,0.0001989,2]
[359014397,1745640637832,-11527.36,0.0001989,2]
[359014398,1745640637844,-150.99,0.0001989,2]
[359014399,1745640637854,-180.65,0.0001989,2]
[359014400,1745640637864,-5016.714,0.00019892,2]
[359014401,1745640637874,-179.087,0.00019892,2]
[359014402,1745640637884,-6412.38100653,0.00019892,2]
[359014403,1745640637895,-6412.38100653,0.00019895,2]
[359014404,1745640637905,-72320.06314359,0.00019897,2]
[359014405,1745640637915,-6412.38100653,0.00019897,2]
[359014406,1745640637927,-225.0,0.000199,2]
[359014407,1745640637937,-17316.5065,0.000199,2]
[359014408,1745640637947,-1000.0,0.000199,2]
[359014409,1745640637957,-34256.517,0.000199,2]
[359014410,1745640637967,-6412.38100653,0.000199,2]
[359014411,1745640637985,-335.83307756,0.000199,2]
[359014412,1745640637995,-525.48834842,0.000199,2]
[359014413,1745640638005,-180.65,0.00019963,2]
[359014414,1745640638014,-180.65,0.00019964,2]
[359014415,1745640638024,-180.65,0.00019964,2]
[359014416,1745640638034,-500.0,0.00019973,2]
[359014417,1745640638043,-513.85638489,0.00019973,2]
[359014418,1745640638053,-500.0,0.00019973,2]
[359014419,1745640638062,-607.62589314,0.00019973,2]
[359014420,1745640638072,-515.11545751,0.00019973,2]
[359014421,1745640638082,-500.0,0.00019973,2]
[359014422,1745640638092,-500.0,0.00019973,2]
[359014423,1745640638103,-166.0163325,0.00019973,2]
[359014424,1745640638113,-500.0,0.00019973,2]
[359014425,1745640638123,-256.16128359,0.00019973,2]
[359014426,1745640638132,-500.0,0.00019973,2]
[359014427,1745640638439,-500.0,0.00019973,2]
[359014428,1745640638450,-500.0,0.00019973,2]
[359014429,1745640638459,-500.0,0.00019973,2]
[359014430,1745640638469,-500.0,0.00019973,2]
[359014431,1745640638478,-500.0,0.00019973,2]
[359014432,1745640638487,-500.0,0.00019973,2]
[359014433,1745640638497,-500.0,0.00019973,2]
[359014434,1745640638506,-500.0,0.00019973,2]
[359014435,1745640638515,-500.0,0.00019973,2]
[359014436,1745640638525,-500.0,0.00019973,2]
[359014437,1745640638535,-500.0,0.00019973,2]
[359014438,1745640638544,-571.64857026,0.00019973,2]
[359014439,1745640638554,-500.0,0.00019973,2]
[359014440,1745640638563,-500.0,0.00019973,2]
[359014441,1745640638572,-500.0,0.00019973,2]
[359014442,1745640638582,-500.0,0.00019973,2]
[359014443,1745640638591,-500.0,0.00019973,2]
[359014444,1745640638601,-500.0,0.00019973,2]
[359014445,1745640638610,-500.0,0.00019973,2]
[359014446,1745640638619,-500.0,0.00019973,2]
[359014447,1745640638629,-500.0,0.00019973,2]
[359014448,1745640638639,-500.0,0.00019973,2]
[359014449,1745640638649,-550.0,0.00019973,2]
[359014450,1745640638658,-361294.96966995,0.00019974,2]
[359014451,1745640638668,-168754.8262895,0.00019986,2]
[359014452,1745640638677,-16349.8547788,0.00019986,2]
[359014453,1745640638687,-5903.4997537,0.00019986,2]
[359014454,1745640638696,-1514.060777,0.00019986,2]
[359014455,1745640638706,-196.0,0.0001999,2]
[359014456,1745640638716,-196.0,0.0001999,2]
[359014457,1745640638726,-500.0,0.00019999,2]
[359014458,1745640638736,-530.6126691,0.00019999,2]
[359014459,1745640638747,-500.0,0.00019999,2]
[359014460,1745640638760,-300.0,0.00019999,2]
[359014461,1745640638769,-383.00964834,0.00019999,2]
[359014462,1745640638780,-5589.32002926,0.00019999,2]
[359014463,1745640638791,-1566951.76192108,0.0002,2]
[359014464,1745640638800,-7255.72104804,0.0002,2]
[359014465,1745640638810,-301.12735078,0.0002,2]
[359014466,1745640638820,-1482.07178052,0.0002,2]
[359014467,1745640638830,-41232.86796624,0.0002,2]
[359014468,1745640638840,-3052.01544059,0.0002,2]
[359014469,1745640638850,-1804.6,0.0002,2]
[359014470,1745640638859,-5397.0,0.0002,2]
[359014471,1745640638870,-5650.4371067,0.0002,2]
[359014472,1745640638879,-295332.08427843,0.0002,2]
[359014473,1745640638892,-2494318.525,0.0002,2]
[359014479,1745640639865,-645.0,0.0002,2]
[359014480,1745640640108,-755.67740756,0.0002,2]
[359014481,1745640640120,-390.33231895,0.0002,2]
[359014487,1745640643506,-1395.0,0.0002,2]
[359014494,1745640645698,-501.2656926,0.000199,2]
[359014495,1745640645709,-120.23620546,0.0002,2]
[359014496,1745640645754,-2102.12994,0.0002,2]
[359014500,1745641048257,1619.75,0.00017657,2]
[359014502,1745641117270,222.73036419,0.000378,60]
[359014503,1745641213776,8927.25851758,0.00018,2]
[359014504,1745641240647,4000.0,0.000378,60]
[359014505,1745641287909,-250.0,0.00019296,2]
[359014506,1745641287936,-1200.0,0.00019397,2]
[359014507,1745641287960,-300.0,0.00019397,2]
[359014508,1745641287984,-3072.17,0.00019398,2]
[359014509,1745641288012,-5837.33,0.00019398,2]
[359014510,1745641288044,-23900.0,0.00019642,2]
[359014511,1745641288069,-4013.371,0.00019642,2]
[359014512,1745641288094,-179.087,0.00019642,2]
[359014513,1745641288118,-3303.77612859,0.00019777,2]
[359014514,1745641288141,-432.13318862,0.00019778,2]
[359014515,1745641288166,-17190.33822803,0.00019778,2]
[359014516,1745641288192,-1000.0,0.00019797,2]
[359014517,1745641288219,-700.25694717,0.000198,2]
[359014518,1745641288243,-179.31289851,0.00019885,2]
[359014519,1745641288270,-500.0,0.00019885,2]
[359014520,1745641288297,-500.0,0.00019885,2]
[359014521,1745641288325,-500.0,0.00019885,2]
[359014522,1745641288353,-500.0,0.00019885,2]
[359014523,1745641288377,-500.0,0.00019885,2]
[359014524,1745641288402,-500.0,0.00019885,2]
[359014525,1745641288427,-500.0,0.00019885,2]
[359014526,1745641288456,-500.0,0.00019885,2]
[359014527,1745641288480,-500.0,0.00019885,2]
[359014528,1745641288506,-500.0,0.00019885,2]
[359014529,1745641288536,-500.0,0.00019885,2]
[359014530,1745641288567,-500.0,0.00019885,2]
[359014531,1745641288595,-500.0,0.00019885,2]
[359014532,1745641288621,-451.37994789,0.00019885,2]
[359014533,1745641288647,-500.0,0.00019885,2]
[359014534,1745641288671,-500.0,0.00019885,2]
[359014535,1745641288696,-500.0,0.00019885,2]
[359014536,1745641288725,-500.0,0.00019885,2]
[359014537,1745641288753,-377.02041614,0.00019885,2]
[359014538,1745641288777,-500.0,0.00019885,2]
[359014539,1745641288802,-500.0,0.00019885,2]
[359014540,1745641288827,-500.0,0.00019885,2]
[359014541,1745641288851,-500.0,0.00019885,2]
[359014542,1745641288876,-150.0,0.00019885,2]
[359014543,1745641288902,-300.0,0.00019885,2]
[359014544,1745641288929,-300.0,0.00019885,2]
[359014545,1745641288954,-300.0,0.00019885,2]
[359014546,1745641288978,-4707.06109395,0.00019886,2]
[359014547,1745641289004,-225.0,0.00019886,2]
[359014548,1745641289027,-11189.7156,0.00019886,2]
[359014549,1745641289052,-9345.0363,0.00019886,2]
[359014550,1745641289076,-3131.0209,0.00019886,2]
[359014551,1745641289099,-6257.8785,0.00019886,2]
[359014552,1745641289122,-64790.1118511,0.00019886,2]
[359014553,1745641293242,-100000.0,0.00019886,2]
[359014554,1745641293823,-39913.6438489,0.00019886,2]
[359014555,1745641293850,-1000.0,0.00019886,2]
[359014556,1745641293877,-163.10886451,0.00019886,2]
[359014557,1745641293902,-9029.7626,0.00019886,2]
[359014558,1745641293926,-14281.7684,0.00019886,2]
[359014559,1745641293951,-4433.1428,0.00019886,2]
[359014560,1745641293976,-2500.0,0.00019886,2]
[359014561,1745641294013,-12579.4057,0.000199,2]
[359014562,1745641294043,-2185.4044,0.000199,2]
[359014563,1745641294067,-3604.1905,0.000199,2]
[359014564,1745641294092,-1619.75,0.00019921,2]
[359014565,1745641294120,-502.23817998,0.00019973,2]
[359014566,1745641294147,-500.0,0.00019973,2]
[359014567,1745641294174,-628.80359583,0.00019973,2]
[359014568,1745641294200,-500.0,0.00019973,2]
[359014569,1745641294225,-2108.7050195,0.00019986,2]
[359014570,1745641294253,-4450.07609128,0.00019986,2]
[359014571,1745641485065,163.21,0.00027425,30]
[359014572,1745641532629,5000.0,0.0002,4]
[359014589,1745641808580,2093.5,0.0001889,2]
[359014591,1745641831642,-468.26544494,0.00019372,2]
[359014592,1745641831704,-531.73455506,0.00019372,2]
[359014593,1745641831714,-98.51374532,0.00019785,2]
[359014601,1745641832706,-201.48625468,0.00019785,2]
[359014603,1745641832716,-942.50201121,0.00019785,2]
[359014605,1745641832730,-257.49798879,0.00019785,2]
[359014606,1745641832739,-300.0,0.00019785,2]
[359014607,1745641832749,-491.01437173,0.00019785,2]
[359014608,1745641832759,-230.51901884,0.00019785,2]
[359014609,1745641832769,-606.90362064,0.00019786,2]
[359014610,1745641832786,-393.09637936,0.00019786,2]
[359014611,1745641832796,-4627.83362064,0.00019786,2]
[359014612,1745641832825,-11642.35769434,0.00019786,2]
[359014613,1745641832882,-2475.883476,0.00019786,2]
[359014615,1745641837683,-15510.44220902,0.00019786,2]
[359014616,1745641837693,-17316.5065,0.00019786,2]
[359014617,1745641837703,-1000.0,0.00019794,2]
[359014618,1745641837712,-4260.67004484,0.000198,2]
[359014619,1745641837722,-4260.67004479,0.00019811,2]
[359014620,1745641837731,-4260.67004479,0.00019822,2]
[359014621,1745641837741,-48490.08597672,0.0001983,2]
[359014622,1745641837750,-4260.67004479,0.00019833,2]
[359014623,1745641837759,-4260.67004479,0.00019844,2]
[359014624,1745641837769,-4260.67004479,0.00019856,2]
[359014625,1745641837779,-4260.67004479,0.00019867,2]
[359014626,1745641837789,-730.28498937,0.0001987,2]
[359014627,1745641837798,-4260.67004479,0.00019878,2]
[359014628,1745641837808,-687.5366707,0.00019882,2]
[359014629,1745641837818,-7042.61225903,0.00019886,2]
[359014630,1745641837827,-10041.7651,0.00019886,2]
[359014631,1745641837837,-525.48834842,0.00019886,2]
[359014632,1745641837846,-2500.0,0.00019886,2]
[359014633,1745641837859,-7042.61225898,0.00019888,2]
[359014634,1745641837869,-3248.06686756,0.00019889,2]
[359014635,1745641837879,-4260.67004479,0.00019889,2]
[359014636,1745641837890,-7042.61225898,0.00019889,2]
[359014637,1745641837900,-500.0,0.0001989,2]
[359014638,1745641837909,-7042.61225898,0.00019891,2]
[359014639,1745641837919,-7042.61225898,0.00019892,2]
[359014640,1745641837930,-7042.61225898,0.00019894,2]
[359014641,1745641837940,-7042.61225898,0.00019895,2]
[359014642,1745641837949,-7042.61225898,0.00019897,2]
[359014643,1745641837959,-7042.61225898,0.00019898,2]
[359014644,1745641837968,-202.36741403,0.00019899,2]
[359014645,1745641837978,-166.0163325,0.00019899,2]
[359014646,1745641837987,-500.0,0.00019899,2]
[359014647,1745641837996,-500.0,0.00019899,2]
[359014648,1745641838006,-500.0,0.00019899,2]
[359014649,1745641838015,-500.0,0.00019899,2]
[359014650,1745641838024,-500.0,0.00019899,2]
[359014651,1745641838034,-415.96596353,0.00019899,2]
[359014652,1745641838044,-500.0,0.00019899,2]
[359014653,1745641838054,-500.0,0.00019899,2]
[359014654,1745641838064,-500.0,0.00019899,2]
[359014655,1745641838073,-500.0,0.00019899,2]
[359014656,1745641838083,-500.0,0.00019899,2]
[359014659,1745641838372,-500.0,0.00019899,2]
[359014660,1745641838389,-500.0,0.00019899,2]
[359014661,1745641838399,-500.0,0.00019899,2]
[359014662,1745641838410,-500.0,0.00019899,2]
[359014663,1745641838419,-500.0,0.00019899,2]
[359014664,1745641838428,-500.0,0.00019899,2]
[359014665,1745641838438,-500.0,0.00019899,2]
[359014666,1745641838447,-500.0,0.00019899,2]
[359014667,1745641838457,-500.0,0.00019899,2]
[359014668,1745641838466,-360.16066912,0.00019899,2]
[359014669,1745641838475,-500.0,0.00019899,2]
[359014670,1745641838485,-300.0,0.00019899,2]
[359014671,1745641838495,-225.0,0.000199,2]
[359014672,1745641838504,-58853.48698888,0.000199,2]
[359014673,1745641838513,-4744.94619545,0.000199,3]
[359014674,1745641838523,-4260.67004479,0.000199,2]
[359014675,1745641838532,-7042.61225898,0.000199,2]
[359014676,1745641838542,-1253.4112993,0.000199,2]
[359014677,1745641838552,-60042.5332459,0.000199,2]
[359014678,1745641838562,-1007.49923266,0.000199,2]
[359014679,1745641838573,-525.48834842,0.000199,2]
[359014680,1745641838583,-1253.41129929,0.00019939,2]
[359014681,1745641838592,-500.0,0.00019973,2]
[359014682,1745641838602,-500.0,0.00019973,2]
[359014683,1745641838612,-513.85638489,0.00019973,2]
[359014684,1745641838624,-506.14206331,0.00019973,2]
[359014685,1745641838634,-500.0,0.00019973,2]
[359014686,1745641838643,-515.11545751,0.00019973,2]
[359014687,1745641838653,-280.82120578,0.00019973,2]
[359014688,1745641838663,-607.62589314,0.00019973,2]
[359014689,1745641838672,-1253.41129929,0.00019978,2]
[359014690,1745641838682,-1000.0,0.00019985,2]
[359014691,1745641838692,-41401.1840497,0.00019986,2]
[359014692,1745641838701,-10864.933726,0.00019986,2]
[359014693,1745641838711,-1118.6111874,0.00019986,2]
[359014694,1745641838720,-18315.3820475,0.00019986,2]
[359014695,1745641838729,-241401.4521604,0.00019986,2]
[359014696,1745641838739,-2825.4,0.00019995,2]
[359014697,1745641838748,-500.0,0.00019999,2]
[359014698,1745641838757,-300.0,0.00019999,2]
[359014699,1745641838766,-5829.44467743,0.00019999,2]
[359014700,1745641838776,-151.0,0.00019999,2]
[359014701,1745641838785,-383.00964834,0.00019999,2]
[359014702,1745641838795,-42775.33,0.00019999,2]
[359014703,1745641838805,-9999.99,0.00019999,2]
[359014704,1745641838814,-647.89,0.00019999,2]
[359014705,1745641838823,-2034126.28146186,0.0002,2]
[359014706,1745641838836,-792717.83370091,0.0002,2]
[359014707,1745641838846,-3950.0,0.0002,2]
[359014708,1745641838856,-1251.08866945,0.0002,2]
[359014709,1745641838868,-11836.41682827,0.0002,2]
[359014710,1745641838878,-1009.47333586,0.0002,2]
[359014711,1745641838887,-1758.69087688,0.0002,2]
[359014712,1745641838897,-250.0,0.0002,2]
[359014713,1745641838906,-250.0,0.0002,2]
[359014714,1745641838915,-250.0,0.0002,2]
[359014715,1745641838924,-250.0,0.0002,2]
[359014716,1745641838933,-250.0,0.0002,2]
[359014717,1745641838942,-250.0,0.0002,2]
[359014718,1745641838952,-250.0,0.0002,2]
[359014719,1745641838961,-250.0,0.0002,2]
[359014720,1745641838970,-250.0,0.0002,2]
[359014721,1745641838980,-250.0,0.0002,2]
[359014722,1745641838989,-320.1,0.0002,2]
[359014723,1745641838998,-500.0,0.0002,2]
[359014724,1745641839008,-1000.0,0.0002,2]
[359014725,1745641839017,-1000.0,0.0002,2]
[359014726,1745641839026,-1000.0,0.0002,2]
[359014727,1745641839036,-1000.0,0.0002,2]
[359014728,1745641839045,-1000.0,0.0002,2]
[359014729,1745641839054,-1000.0,0.0002,2]
[359014730,1745641839063,-1000.0,0.0002,2]
[359014731,1745641839073,-1000.0,0.0002,2]
[359014732,1745641839082,-1000.0,0.0002,2]
[359014733,1745641839091,-1000.0,0.0002,2]
[359014734,1745641839102,-1000.0,0.0002,2]